[Event "*** Titled Tuesday Blitz"]
[Site "Chess.com"]
[Date "2020.05.19"]
[Round "7"]
[White "garfield_pg"]
[Black "Quattroporte300"]
[Result "0-1"]
[WhiteElo "2155"]
[BlackElo "2321"]
[TimeControl "180+1"]
[EndTime "13:21:13 PDT"]
[Termination "Quattroporte300 won on time"]

1. e4 {[%clk 0:03:00.9]} 1... e5 {[%clk 0:02:59.4]} 2. d4 {[%clk 0:03:00.7]}
2... exd4 {[%clk 0:02:58.9]} 3. Nf3 {[%clk 0:03:01.6]} 3... Nc6 {[%clk
0:02:57.1]} 4. Nxd4 {[%clk 0:03:01.6]} 4... Nf6 {[%clk 0:02:56.1]} 5. Nc3 {[%clk
0:02:56.4]} 5... Bb4 {[%clk 0:02:55]} 6. Nxc6 {[%clk 0:02:50.6]} 6... bxc6
{[%clk 0:02:54.8]} 7. Bd3 {[%clk 0:02:27.3]} 7... d5 {[%clk 0:02:53.3]} 8. exd5
{[%clk 0:02:28.2]} 8... cxd5 {[%clk 0:02:53]} 9. O-O {[%clk 0:02:28.7]} 9... O-O
{[%clk 0:02:53.4]} 10. Bg5 {[%clk 0:02:29.3]} 10... c6 {[%clk 0:02:53.9]} 11.
Qf3 {[%clk 0:02:29.9]} 11... Be7 {[%clk 0:02:44.6]} 12. Ne2 {[%clk 0:02:26.9]}
12... Rb8 {[%clk 0:02:36]} 13. b3 {[%clk 0:02:25.9]} 13... Bg4 {[%clk
0:02:17.9]} 14. Qg3 {[%clk 0:02:25.5]} 14... Bxe2 {[%clk 0:02:00.2]} 15. Bxf6
{[%clk 0:00:15.6]} 15... Bxf6 {[%clk 0:01:58.1]} 16. Bxe2 {[%clk 0:00:14.6]}
16... Bxa1 {[%clk 0:01:58]} 17. Rxa1 {[%clk 0:00:15.5]} 17... Qf6 {[%clk
0:01:56.4]} 18. Rd1 {[%clk 0:00:14.6]} 18... Rbe8 {[%clk 0:01:53.4]} 19. Bd3
{[%clk 0:00:15.1]} 19... Qe5 {[%clk 0:01:48.8]} 20. Qh3 {[%clk 0:00:08.3]} 20...
g6 {[%clk 0:01:43.9]} 21. Qh6 {[%clk 0:00:07.6]} 21... Qg7 {[%clk 0:01:34.5]}
22. Qd2 {[%clk 0:00:07.8]} 22... Qd4 {[%clk 0:01:29]} 23. h3 {[%clk 0:00:06]}
23... Kg7 {[%clk 0:01:26.5]} 24. Qa5 {[%clk 0:00:05.8]} 24... Qb6 {[%clk
0:01:25.2]} 25. Qc3+ {[%clk 0:00:05.3]} 25... d4 {[%clk 0:01:24.2]} 26. Qc4
{[%clk 0:00:05]} 26... c5 {[%clk 0:01:23]} 27. a4 {[%clk 0:00:05.1]} 27... Qa5
{[%clk 0:01:19.9]} 28. h4 {[%clk 0:00:04.4]} 28... Re1+ {[%clk 0:01:16.9]} 29.
Rxe1 {[%clk 0:00:05]} 29... Qxe1+ {[%clk 0:01:16.9]} 30. Bf1 {[%clk 0:00:05.9]}
30... Qc3 {[%clk 0:00:55.8]} 31. Qe2 {[%clk 0:00:05.8]} 31... Rd8 {[%clk
0:00:42.6]} 32. h5 {[%clk 0:00:05.9]} 32... d3 {[%clk 0:00:38.4]} 33. h6+ {[%clk
0:00:06]} 33... Kxh6 {[%clk 0:00:33.9]} 34. Qe3+ {[%clk 0:00:05.8]} 34... Kg7
{[%clk 0:00:33.1]} 35. Bxd3 {[%clk 0:00:06.4]} 35... Qa1+ {[%clk 0:00:29.1]} 36.
Kh2 {[%clk 0:00:05.3]} 36... Qd4 {[%clk 0:00:28.9]} 37. Qf3 {[%clk 0:00:03.6]}
37... Rd5 {[%clk 0:00:28.3]} 38. g3 {[%clk 0:00:03.6]} 38... Rd6 {[%clk
0:00:24.5]} 39. Kg1 {[%clk 0:00:03.3]} 39... Rf6 {[%clk 0:00:24.2]} 40. Qe2
{[%clk 0:00:03.8]} 40... Re6 {[%clk 0:00:24.4]} 41. Qf3 {[%clk 0:00:03.6]} 41...
Qf6 {[%clk 0:00:20.3]} 42. Qg2 {[%clk 0:00:02.6]} 42... Re1+ {[%clk 0:00:19.8]}
43. Bf1 {[%clk 0:00:03.1]} 43... Rc1 {[%clk 0:00:16.1]} 44. Qe4 {[%clk
0:00:02.6]} 44... Qd4 {[%clk 0:00:13.1]} 45. Qe2 {[%clk 0:00:02.4]} 45... Rd1
{[%clk 0:00:08.5]} 46. Kg2 {[%clk 0:00:02.1]} 46... Rd2 {[%clk 0:00:08.8]} 47.
Qe7 {[%clk 0:00:02.2]} 47... Qxf2+ {[%clk 0:00:08.1]} 48. Kh3 {[%clk 0:00:02.4]}
48... Qxf1+ {[%clk 0:00:08.4]} 49. Kg4 {[%clk 0:00:03.3]} 49... Qf5+ {[%clk
0:00:08.4]} 0-1

[Event "*** Titled Tuesday Blitz"]
[Site "Chess.com"]
[Date "2020.05.19"]
[Round "7"]
[White "Titus369"]
[Black "Zubrrr"]
[Result "1-0"]
[WhiteElo "2520"]
[BlackElo "2657"]
[TimeControl "180+1"]
[EndTime "13:21:21 PDT"]
[Termination "Titus369 won by resignation"]

1. e4 {[%clk 0:03:00.9]} 1... c5 {[%clk 0:02:58.9]} 2. Nf3 {[%clk 0:02:57.9]}
2... d6 {[%clk 0:02:59.1]} 3. d4 {[%clk 0:02:58.5]} 3... cxd4 {[%clk 0:03:00]}
4. Nxd4 {[%clk 0:02:59.3]} 4... Nf6 {[%clk 0:03:00]} 5. Nc3 {[%clk 0:02:59.7]}
5... a6 {[%clk 0:03:00.5]} 6. a3 {[%clk 0:02:57]} 6... Qc7 {[%clk 0:02:47.2]} 7.
f3 {[%clk 0:02:31.6]} 7... e6 {[%clk 0:02:44.9]} 8. g4 {[%clk 0:02:28.7]} 8...
b5 {[%clk 0:02:34.3]} 9. Be3 {[%clk 0:02:13.5]} 9... Bb7 {[%clk 0:02:33.2]} 10.
Qd2 {[%clk 0:02:13.1]} 10... Nbd7 {[%clk 0:02:33.1]} 11. h4 {[%clk 0:02:04.4]}
11... Nb6 {[%clk 0:02:30.8]} 12. O-O-O {[%clk 0:01:47.3]} 12... Nfd7 {[%clk
0:02:11.2]} 13. Ndxb5 {[%clk 0:01:25.7]} 13... axb5 {[%clk 0:02:09.7]} 14. Nxb5
{[%clk 0:01:26.6]} 14... Qc6 {[%clk 0:01:39.7]} 15. Nxd6+ {[%clk 0:01:25.8]}
15... Bxd6 {[%clk 0:01:39.1]} 16. Qxd6 {[%clk 0:01:26.7]} 16... Rc8 {[%clk
0:01:31.2]} 17. Qxc6 {[%clk 0:01:25.5]} 17... Bxc6 {[%clk 0:01:31.8]} 18. b3
{[%clk 0:01:13.8]} 18... f5 {[%clk 0:01:02.2]} 19. gxf5 {[%clk 0:01:07.4]} 19...
exf5 {[%clk 0:01:01.7]} 20. Rg1 {[%clk 0:00:52.3]} 20... O-O {[%clk 0:00:53.9]}
21. Bd4 {[%clk 0:00:33.2]} 21... Rf7 {[%clk 0:00:29.9]} 22. Bh3 {[%clk
0:00:27.8]} 22... Re8 {[%clk 0:00:12.1]} 23. Bxf5 {[%clk 0:00:25.8]} 23... Nc8
{[%clk 0:00:12.5]} 24. h5 {[%clk 0:00:16]} 24... Nd6 {[%clk 0:00:10.3]} 25. Bxd7
{[%clk 0:00:12.5]} 25... Bxd7 {[%clk 0:00:08.4]} 26. Bxg7 {[%clk 0:00:11.5]}
26... Rxg7 {[%clk 0:00:08.9]} 27. Rxg7+ {[%clk 0:00:11.3]} 27... Kxg7 {[%clk
0:00:09.8]} 28. Rxd6 {[%clk 0:00:11.6]} 28... Bh3 {[%clk 0:00:10.4]} 29. Kd2
{[%clk 0:00:11.1]} 29... Rf8 {[%clk 0:00:09.7]} 30. Ke3 {[%clk 0:00:10.8]} 30...
Bg2 {[%clk 0:00:09.7]} 31. f4 {[%clk 0:00:11.1]} 31... Re8 {[%clk 0:00:07.3]}
32. e5 {[%clk 0:00:11]} 32... Rc8 {[%clk 0:00:04.1]} 33. Rd2 {[%clk 0:00:05.2]}
33... Bh3 {[%clk 0:00:02.6]} 34. c4 {[%clk 0:00:04.4]} 34... Bf5 {[%clk
0:00:02.2]} 35. Rg2+ {[%clk 0:00:02.6]} 35... Kh6 {[%clk 0:00:02.3]} 36. a4
{[%clk 0:00:02.1]} 36... Rb8 {[%clk 0:00:01.4]} 37. Rb2 {[%clk 0:00:01.4]} 37...
Kxh5 {[%clk 0:00:01.9]} 38. Kd4 {[%clk 0:00:02.1]} 38... Kg4 {[%clk 0:00:02.2]}
39. b4 {[%clk 0:00:02.4]} 39... h5 {[%clk 0:00:02.6]} 40. b5 {[%clk 0:00:03.3]}
40... h4 {[%clk 0:00:03.1]} 41. Rg2+ {[%clk 0:00:03.8]} 41... Kf3 {[%clk
0:00:03.3]} 42. Rh2 {[%clk 0:00:04]} 42... h3 {[%clk 0:00:03.1]} 43. c5 {[%clk
0:00:04.5]} 43... Kg3 {[%clk 0:00:03.3]} 44. Rh1 {[%clk 0:00:04.2]} 44... Kxf4
{[%clk 0:00:03.5]} 45. c6 {[%clk 0:00:03.9]} 45... Rd8+ {[%clk 0:00:03.9]} 46.
Kc5 {[%clk 0:00:04]} 46... Kg3 {[%clk 0:00:04.3]} 47. c7 {[%clk 0:00:03.8]}
47... Re8 {[%clk 0:00:04.6]} 48. Kd6 {[%clk 0:00:03.5]} 48... Be4 {[%clk
0:00:04.7]} 49. Rxh3+ {[%clk 0:00:02.6]} 49... Kxh3 {[%clk 0:00:05.1]} 50. Kd7
{[%clk 0:00:02.6]} 50... Rxe5 {[%clk 0:00:04.5]} 51. c8=Q {[%clk 0:00:03]} 51...
Bf5+ {[%clk 0:00:05.1]} 52. Kd6 {[%clk 0:00:03.5]} 52... Bxc8 {[%clk 0:00:05]}
53. Kxe5 {[%clk 0:00:04]} 53... Kg4 {[%clk 0:00:04.3]} 54. Kd6 {[%clk
0:00:04.3]} 54... Kf5 {[%clk 0:00:03.7]} 55. Kc7 {[%clk 0:00:04.7]} 55... Be6
{[%clk 0:00:03.6]} 56. b6 {[%clk 0:00:05]} 1-0

[Event "*** Titled Tuesday Blitz"]
[Site "Chess.com"]
[Date "2020.05.19"]
[Round "7"]
[White "Er_is_geen_hoop_meer"]
[Black "Dhaydon19"]
[Result "0-1"]
[WhiteElo "2445"]
[BlackElo "2729"]
[TimeControl "180+1"]
[EndTime "13:21:22 PDT"]
[Termination "Dhaydon19 won by checkmate"]

1. b4 {[%clk 0:03:00.9]} 1... c6 {[%clk 0:03:00.6]} 2. e3 {[%clk 0:03:00.5]}
2... d5 {[%clk 0:03:01.5]} 3. Bb2 {[%clk 0:03:00.6]} 3... Nf6 {[%clk 0:03:02.4]}
4. Be2 {[%clk 0:03:00.5]} 4... a5 {[%clk 0:03:02.7]} 5. b5 {[%clk 0:03:00.3]}
5... Bf5 {[%clk 0:03:01.6]} 6. a4 {[%clk 0:03:00]} 6... e6 {[%clk 0:03:01.8]} 7.
g4 {[%clk 0:03:00.5]} 7... Bg6 {[%clk 0:03:00]} 8. g5 {[%clk 0:03:00.7]} 8...
Ne4 {[%clk 0:02:57]} 9. h4 {[%clk 0:03:01.6]} 9... h6 {[%clk 0:02:56.9]} 10. h5
{[%clk 0:03:00.9]} 10... hxg5 {[%clk 0:02:53.9]} 11. Bf3 {[%clk 0:02:52.7]}
11... Bf5 {[%clk 0:02:49]} 12. d3 {[%clk 0:02:52.7]} 12... Nf6 {[%clk
0:02:48.8]} 13. Nd2 {[%clk 0:02:42.3]} 13... g4 {[%clk 0:02:47.5]} 14. Be2
{[%clk 0:02:39.6]} 14... Nbd7 {[%clk 0:02:38.8]} 15. f3 {[%clk 0:02:38.6]} 15...
Rxh5 {[%clk 0:02:32.7]} 16. Rxh5 {[%clk 0:02:35.5]} 16... Nxh5 {[%clk
0:02:32.9]} 17. fxg4 {[%clk 0:02:34.5]} 17... Qh4+ {[%clk 0:02:31.5]} 18. Kf1
{[%clk 0:02:34.7]} 18... Ng3+ {[%clk 0:02:31.5]} 19. Kg2 {[%clk 0:02:30.8]}
19... Nxe2 {[%clk 0:02:23.9]} 20. Qxe2 {[%clk 0:02:31.2]} 20... Bxg4 {[%clk
0:02:23.9]} 21. Ndf3 {[%clk 0:02:31.3]} 21... Qh5 {[%clk 0:02:23]} 22. e4 {[%clk
0:02:30.7]} 22... dxe4 {[%clk 0:02:16.9]} 23. Qxe4 {[%clk 0:02:31.6]} 23... Nf6
{[%clk 0:02:15.2]} 24. Qe5 {[%clk 0:02:22.6]} 24... Bxf3+ {[%clk 0:02:07.5]} 25.
Nxf3 {[%clk 0:02:21.7]} 25... Qxe5 {[%clk 0:02:07.3]} 26. Nxe5 {[%clk
0:02:20.9]} 26... cxb5 {[%clk 0:02:07.1]} 27. axb5 {[%clk 0:02:21.8]} 27... a4
{[%clk 0:02:06.4]} 28. Nc4 {[%clk 0:02:20.3]} 28... Nd5 {[%clk 0:02:04.9]} 29.
Bd4 {[%clk 0:02:09.7]} 29... f6 {[%clk 0:01:59.3]} 30. Nb2 {[%clk 0:02:09.3]}
30... a3 {[%clk 0:01:58.3]} 31. Nc4 {[%clk 0:02:08.9]} 31... e5 {[%clk
0:01:56.8]} 32. Be3 {[%clk 0:02:05.9]} 32... Rc8 {[%clk 0:01:51.7]} 33. Bd2
{[%clk 0:02:04.1]} 33... Ra8 {[%clk 0:01:41.4]} 34. Kf3 {[%clk 0:02:04.2]} 34...
Kf7 {[%clk 0:01:41.2]} 35. d4 {[%clk 0:02:03.3]} 35... exd4 {[%clk 0:01:38.9]}
36. Ke4 {[%clk 0:02:03.4]} 36... Nc3+ {[%clk 0:01:38]} 37. Bxc3 {[%clk
0:01:56.8]} 37... dxc3 {[%clk 0:01:38.9]} 38. Kd5 {[%clk 0:01:45.8]} 38... Rd8+
{[%clk 0:01:34.6]} 39. Ke4 {[%clk 0:01:45]} 39... Bc5 {[%clk 0:01:33.3]} 40. Na5
{[%clk 0:01:40.7]} 40... Rd4+ {[%clk 0:01:30]} 41. Kf3 {[%clk 0:01:40.3]} 41...
Rd7 {[%clk 0:01:26.5]} 42. Nb3 {[%clk 0:01:39.5]} 42... Bb4 {[%clk 0:01:25.3]}
43. Ke4 {[%clk 0:01:39.8]} 43... g6 {[%clk 0:01:23.7]} 44. Nd4 {[%clk
0:01:39.4]} 44... f5+ {[%clk 0:01:23.8]} 45. Ke5 {[%clk 0:01:39.5]} 45... Be7
{[%clk 0:01:17.3]} 46. Nf3 {[%clk 0:01:35.3]} 46... b6 {[%clk 0:01:10.6]} 47.
Rh1 {[%clk 0:01:33.6]} 47... a2 {[%clk 0:01:08.1]} 48. Ng5+ {[%clk 0:01:11.7]}
48... Bxg5 {[%clk 0:01:05.5]} 49. Rh7+ {[%clk 0:01:11.9]} 49... Ke8 {[%clk
0:01:05.7]} 50. Rh8+ {[%clk 0:01:11.1]} 50... Ke7 {[%clk 0:01:06]} 51. Ra8
{[%clk 0:00:58.6]} 51... Bf6+ {[%clk 0:01:02.3]} 52. Kf4 {[%clk 0:00:57.8]}
52... Rd4+ {[%clk 0:01:02]} 53. Ke3 {[%clk 0:00:58.1]} 53... Rb4 {[%clk
0:01:02]} 54. Rxa2 {[%clk 0:00:55.4]} 54... Rxb5 {[%clk 0:01:02]} 55. Ra7+
{[%clk 0:00:55.3]} 55... Ke6 {[%clk 0:01:01.3]} 56. Rc7 {[%clk 0:00:56.2]} 56...
Re5+ {[%clk 0:01:00.5]} 57. Kf4 {[%clk 0:00:56.1]} 57... Re4+ {[%clk 0:01:00.2]}
58. Kf3 {[%clk 0:00:56.9]} 58... b5 {[%clk 0:01:00.5]} 59. Rc6+ {[%clk
0:00:56.9]} 59... Kf7 {[%clk 0:01:00.7]} 60. Rc7+ {[%clk 0:00:38.5]} 60... Re7
{[%clk 0:00:59.4]} 61. Rc5 {[%clk 0:00:38.3]} 61... Rb7 {[%clk 0:00:59.1]} 62.
Kf4 {[%clk 0:00:37.9]} 62... b4 {[%clk 0:00:59.5]} 63. Kf3 {[%clk 0:00:37.9]}
63... b3 {[%clk 0:00:59]} 64. cxb3 {[%clk 0:00:38.8]} 64... Rxb3 {[%clk
0:00:59.3]} 65. Kf4 {[%clk 0:00:39.7]} 65... Rb4+ {[%clk 0:00:57.6]} 66. Kf3
{[%clk 0:00:38.9]} 66... Bd4 {[%clk 0:00:56.8]} 67. Rc6 {[%clk 0:00:38]} 67...
g5 {[%clk 0:00:56.3]} 68. Kg3 {[%clk 0:00:37.7]} 68... Be5+ {[%clk 0:00:56.2]}
69. Kf3 {[%clk 0:00:37.7]} 69... g4+ {[%clk 0:00:56.6]} 70. Ke3 {[%clk
0:00:37.3]} 70... f4+ {[%clk 0:00:56.8]} 71. Kf2 {[%clk 0:00:36.9]} 71... Rb2+
{[%clk 0:00:56.7]} 72. Kg1 {[%clk 0:00:36.7]} 72... f3 {[%clk 0:00:56.9]} 73.
Ra6 {[%clk 0:00:33.2]} 73... Bg3 {[%clk 0:00:56.1]} 74. Ra1 {[%clk 0:00:32.7]}
74... c2 {[%clk 0:00:56.5]} 75. Rf1 {[%clk 0:00:26]} 75... Rb1 {[%clk
0:00:55.7]} 76. Kh1 {[%clk 0:00:26.2]} 76... Rxf1# {[%clk 0:00:55.3]} 0-1

[Event "*** Titled Tuesday Blitz"]
[Site "Chess.com"]
[Date "2020.05.19"]
[Round "7"]
[White "Ural_bogatyr"]
[Black "wild_cat99"]
[Result "0-1"]
[WhiteElo "2398"]
[BlackElo "2564"]
[TimeControl "180+1"]
[EndTime "13:21:23 PDT"]
[Termination "wild_cat99 won by checkmate"]

1. e4 {[%clk 0:03:00.9]} 1... c5 {[%clk 0:02:58.6]} 2. Nf3 {[%clk 0:03:00.8]}
2... d6 {[%clk 0:02:58.6]} 3. d4 {[%clk 0:03:00.3]} 3... cxd4 {[%clk 0:02:59.5]}
4. Qxd4 {[%clk 0:03:00.4]} 4... Nf6 {[%clk 0:03:00.4]} 5. Nc3 {[%clk 0:02:59.7]}
5... Nc6 {[%clk 0:03:00.4]} 6. Bb5 {[%clk 0:03:00]} 6... Bd7 {[%clk 0:03:00.8]}
7. Bxc6 {[%clk 0:03:00.1]} 7... Bxc6 {[%clk 0:03:01.7]} 8. Bg5 {[%clk
0:03:00.2]} 8... e6 {[%clk 0:03:00.9]} 9. O-O-O {[%clk 0:03:00.3]} 9... Be7
{[%clk 0:03:01.1]} 10. Qd3 {[%clk 0:02:59.7]} 10... Qc7 {[%clk 0:02:49.7]} 11.
Nd4 {[%clk 0:02:58.1]} 11... a6 {[%clk 0:02:42.4]} 12. f4 {[%clk 0:02:47.7]}
12... Rd8 {[%clk 0:02:40.7]} 13. Kb1 {[%clk 0:02:43.5]} 13... h6 {[%clk
0:02:35.5]} 14. Bh4 {[%clk 0:02:41.8]} 14... b5 {[%clk 0:02:29.7]} 15. f5 {[%clk
0:02:41.1]} 15... b4 {[%clk 0:02:21.2]} 16. Nxc6 {[%clk 0:02:15.2]} 16... Qxc6
{[%clk 0:02:17]} 17. Bxf6 {[%clk 0:02:14.8]} 17... Bxf6 {[%clk 0:02:13.6]} 18.
Ne2 {[%clk 0:02:13.8]} 18... O-O {[%clk 0:02:12.6]} 19. Nd4 {[%clk 0:02:09]}
19... Bxd4 {[%clk 0:02:07.2]} 20. Qxd4 {[%clk 0:02:09.9]} 20... exf5 {[%clk
0:02:08.1]} 21. exf5 {[%clk 0:02:08.9]} 21... a5 {[%clk 0:02:06.1]} 22. f6
{[%clk 0:02:03.4]} 22... g6 {[%clk 0:02:02.6]} 23. h4 {[%clk 0:01:59.4]} 23...
Rfe8 {[%clk 0:01:58.3]} 24. h5 {[%clk 0:01:58.3]} 24... g5 {[%clk 0:01:57]} 25.
Rhe1 {[%clk 0:01:56.1]} 25... Rxe1 {[%clk 0:01:53]} 26. Rxe1 {[%clk 0:01:57]}
26... Qxg2 {[%clk 0:01:53.4]} 27. Qc4 {[%clk 0:01:24.8]} 27... d5 {[%clk
0:01:35.8]} 28. Qc7 {[%clk 0:01:22]} 28... Rf8 {[%clk 0:01:35.8]} 29. Qxa5
{[%clk 0:01:10.9]} 29... Rc8 {[%clk 0:01:35.9]} 30. Rc1 {[%clk 0:01:05.8]} 30...
Qe4 {[%clk 0:01:34.9]} 31. Qa6 {[%clk 0:00:58.4]} 31... Re8 {[%clk 0:01:30.3]}
32. Qd6 {[%clk 0:00:49.8]} 32... g4 {[%clk 0:01:26.9]} 33. b3 {[%clk 0:00:39.9]}
33... Re5 {[%clk 0:00:56.7]} 34. Qd8+ {[%clk 0:00:37.1]} 34... Re8 {[%clk
0:00:54]} 35. Qd6 {[%clk 0:00:37.1]} 35... Re6 {[%clk 0:00:46.5]} 36. Qd8+
{[%clk 0:00:33.9]} 36... Kh7 {[%clk 0:00:46.2]} 37. Rf1 {[%clk 0:00:20.9]} 37...
Rc6 {[%clk 0:00:34.3]} 38. Rc1 {[%clk 0:00:20.2]} 38... Qf5 {[%clk 0:00:29.5]}
39. Qf8 {[%clk 0:00:15.2]} 39... Rxf6 {[%clk 0:00:28.6]} 40. Qxb4 {[%clk
0:00:15.1]} 40... Qxh5 {[%clk 0:00:28.1]} 41. a4 {[%clk 0:00:12.5]} 41... g3
{[%clk 0:00:26.2]} 42. Qe7 {[%clk 0:00:09.7]} 42... Rf2 {[%clk 0:00:23.9]} 43.
a5 {[%clk 0:00:07.5]} 43... g2 {[%clk 0:00:22.8]} 44. Qe3 {[%clk 0:00:05.6]}
44... Rf1 {[%clk 0:00:21.7]} 45. Qd3+ {[%clk 0:00:05.4]} 45... Qg6 {[%clk
0:00:17.3]} 46. Rxf1 {[%clk 0:00:03.2]} 46... Qxd3 {[%clk 0:00:16.6]} 47. Rxf7+
{[%clk 0:00:02.1]} 47... Kg6 {[%clk 0:00:16.5]} 48. cxd3 {[%clk 0:00:01.3]}
48... g1=Q+ {[%clk 0:00:16.1]} 49. Kb2 {[%clk 0:00:02.2]} 49... Kxf7 {[%clk
0:00:16.3]} 50. a6 {[%clk 0:00:01.6]} 50... Qa7 {[%clk 0:00:16.8]} 51. Ka3
{[%clk 0:00:01.8]} 51... Qxa6+ {[%clk 0:00:17]} 52. Kb4 {[%clk 0:00:02.7]} 52...
Qxd3 {[%clk 0:00:17.6]} 53. Kc5 {[%clk 0:00:01.5]} 53... Qxb3 {[%clk 0:00:17.5]}
54. Kd6 {[%clk 0:00:01.3]} 54... d4 {[%clk 0:00:17.5]} 55. Ke5 {[%clk
0:00:01.8]} 55... d3 {[%clk 0:00:18.4]} 56. Ke4 {[%clk 0:00:02.7]} 56... d2
{[%clk 0:00:19.3]} 57. Kf5 {[%clk 0:00:02.8]} 57... d1=Q {[%clk 0:00:18]} 58.
Ke5 {[%clk 0:00:03.7]} 58... Qh5+ {[%clk 0:00:17.2]} 59. Kf4 {[%clk 0:00:03.2]}
59... Qh4+ {[%clk 0:00:17]} 60. Kf5 {[%clk 0:00:02.7]} 60... Qd5# {[%clk
0:00:16.7]} 0-1

[Event "*** Titled Tuesday Blitz"]
[Site "Chess.com"]
[Date "2020.05.19"]
[Round "7"]
[White "zajka-molotok"]
[Black "politeplayer"]
[Result "0-1"]
[WhiteElo "2320"]
[BlackElo "2220"]
[TimeControl "180+1"]
[EndTime "13:21:24 PDT"]
[Termination "politeplayer won by resignation"]

1. e4 {[%clk 0:03:00.9]} 1... e6 {[%clk 0:02:59.5]} 2. d4 {[%clk 0:03:00.5]}
2... d5 {[%clk 0:03:00]} 3. e5 {[%clk 0:03:01]} 3... c5 {[%clk 0:02:58.8]} 4. c3
{[%clk 0:03:01.3]} 4... Bd7 {[%clk 0:02:58.5]} 5. Nf3 {[%clk 0:02:58.4]} 5... a6
{[%clk 0:02:58.7]} 6. Na3 {[%clk 0:02:36.1]} 6... c4 {[%clk 0:02:55.1]} 7. Nc2
{[%clk 0:02:32.6]} 7... b5 {[%clk 0:02:55.2]} 8. Be2 {[%clk 0:02:28.5]} 8... a5
{[%clk 0:02:52.5]} 9. a3 {[%clk 0:02:24.8]} 9... Nc6 {[%clk 0:02:45.4]} 10. O-O
{[%clk 0:02:24]} 10... b4 {[%clk 0:02:45.5]} 11. Bg5 {[%clk 0:02:16.4]} 11...
Be7 {[%clk 0:02:19.7]} 12. Bd2 {[%clk 0:01:53.9]} 12... Rb8 {[%clk 0:02:11.2]}
13. Nfe1 {[%clk 0:01:46.3]} 13... bxc3 {[%clk 0:02:04.8]} 14. Bxc3 {[%clk
0:01:44]} 14... Nh6 {[%clk 0:02:05.1]} 15. Ne3 {[%clk 0:01:42.4]} 15... a4
{[%clk 0:01:51.7]} 16. f4 {[%clk 0:01:40.8]} 16... Na5 {[%clk 0:01:48.3]} 17.
N1c2 {[%clk 0:01:18.4]} 17... Nb3 {[%clk 0:01:37.5]} 18. Rb1 {[%clk 0:01:16.9]}
18... f5 {[%clk 0:01:23.2]} 19. exf6 {[%clk 0:01:14.9]} 19... Bxf6 {[%clk
0:01:17.1]} 20. Bb4 {[%clk 0:00:52.5]} 20... Kf7 {[%clk 0:01:06.5]} 21. Kh1
{[%clk 0:00:43.5]} 21... Re8 {[%clk 0:00:58.2]} 22. Bd6 {[%clk 0:00:34]} 22...
Rb6 {[%clk 0:00:55]} 23. Be5 {[%clk 0:00:34.5]} 23... Kg8 {[%clk 0:00:46.8]} 24.
g4 {[%clk 0:00:22.6]} 24... Bxe5 {[%clk 0:00:41.7]} 25. fxe5 {[%clk 0:00:22.2]}
25... Rf8 {[%clk 0:00:41.3]} 26. Rxf8+ {[%clk 0:00:19.7]} 26... Qxf8 {[%clk
0:00:41]} 27. Qg1 {[%clk 0:00:19]} 27... Nd2 {[%clk 0:00:39.2]} 28. Rd1 {[%clk
0:00:16.4]} 28... Ne4 {[%clk 0:00:37.8]} 29. Rf1 {[%clk 0:00:15.3]} 29... Qe7
{[%clk 0:00:38]} 30. Nb4 {[%clk 0:00:14.9]} 30... Rb8 {[%clk 0:00:36.9]} 31. Bf3
{[%clk 0:00:13.5]} 31... Nd2 {[%clk 0:00:33.2]} 32. Rf2 {[%clk 0:00:12.7]} 32...
Nxf3 {[%clk 0:00:32.3]} 33. Rxf3 {[%clk 0:00:12.9]} 33... Rf8 {[%clk 0:00:32.9]}
34. Rxf8+ {[%clk 0:00:12.3]} 34... Qxf8 {[%clk 0:00:32.6]} 35. Qg2 {[%clk
0:00:10.7]} 35... Qf4 {[%clk 0:00:31.8]} 36. Nbc2 {[%clk 0:00:10.4]} 36... Be8
{[%clk 0:00:28.8]} 37. g5 {[%clk 0:00:09.7]} 37... Bg6 {[%clk 0:00:28.5]} 38.
Kg1 {[%clk 0:00:08.6]} 38... Be4 {[%clk 0:00:27.9]} 39. Qg3 {[%clk 0:00:08.5]}
39... Qxg3+ {[%clk 0:00:26.9]} 40. hxg3 {[%clk 0:00:08.6]} 40... Nf5 {[%clk
0:00:27.3]} 41. Nxf5 {[%clk 0:00:07.6]} 41... Bxf5 {[%clk 0:00:27]} 42. Ne3
{[%clk 0:00:07.3]} 42... Be4 {[%clk 0:00:25.4]} 43. Kf2 {[%clk 0:00:07.1]} 43...
Kf7 {[%clk 0:00:25.8]} 44. Nd1 {[%clk 0:00:07.3]} 44... Kg6 {[%clk 0:00:25.9]}
45. Nc3 {[%clk 0:00:07.5]} 45... Bc2 {[%clk 0:00:26]} 46. Kf3 {[%clk 0:00:06.7]}
46... Kxg5 {[%clk 0:00:25.9]} 47. Nb5 {[%clk 0:00:06.7]} 47... Be4+ {[%clk
0:00:25.8]} 48. Ke3 {[%clk 0:00:06.2]} 48... Kf5 {[%clk 0:00:24.4]} 49. Nc3
{[%clk 0:00:05.6]} 49... h5 {[%clk 0:00:24]} 50. Nxa4 {[%clk 0:00:05.2]} 50...
g5 {[%clk 0:00:23.4]} 51. Nc3 {[%clk 0:00:05.2]} 51... Kg4 {[%clk 0:00:23.2]}
52. Kf2 {[%clk 0:00:05]} 52... h4 {[%clk 0:00:22.7]} 53. gxh4 {[%clk 0:00:04.7]}
53... gxh4 {[%clk 0:00:23.2]} 54. Kg1 {[%clk 0:00:04.4]} 54... Kg3 {[%clk
0:00:22.5]} 55. a4 {[%clk 0:00:04.6]} 55... h3 {[%clk 0:00:22.1]} 56. Nxe4+
{[%clk 0:00:03.8]} 56... dxe4 {[%clk 0:00:20.6]} 57. a5 {[%clk 0:00:04.3]} 57...
e3 {[%clk 0:00:21]} 58. a6 {[%clk 0:00:04]} 58... h2+ {[%clk 0:00:21.5]} 59. Kh1
{[%clk 0:00:02.4]} 59... e2 {[%clk 0:00:20.9]} 0-1